Cogmind - Beta 16 --- EXPLORER MODE // 2025.12.15 @ 09:38:28 Player: K.K.Y. Result: Destroyed by Piercing Trap Performance ------------- Evolutions (0) 0 Regions Visited (3) 600 Robots Destroyed (38) 190 Value Destroyed (687) 687 Prototype IDs (12) 240 Alien Tech Used (0) 0 Bonus (0) 0 TOTAL SCORE: 1717 Bonus ------- None Cogmind --------- Core Integrity 0/250 Matter 266/300 Energy 122/125 System Corruption 4% Temperature Cool (9) Movement Flying (34) Location -10/Subcaves Parts ------- > --- POWER (1) -------- Light Ion Engine > --- PROPULSION (3) --- Flight Unit Flight Unit Flight Unit > --- UTILITY (2) ------ (None) > --- WEAPON (2) ------- Riot Gun Battle Cannon > --- INVENTORY (5) ---- Combat Airjet Huge Storage Unit Improved Terrain Scanner Ripper Ripper Peak State ------------ > --- POWER ------------ Light Nuclear Core > --- PROPULSION ------- Combat Airjet Flight Unit > --- UTILITY ---------- Structural Scanner > --- WEAPON ----------- Light Cannon Light Cannon > --- INVENTORY -------- Light Ion Engine Huge Storage Unit Improved Terrain Scanner Datajack Mining Laser [Rating: 12] Favorites ----------- Power Light Ion Engine Engine Light Ion Engine Power Core Light Nuclear Core Propulsion Flight Unit Wheel Wheel Hover Unit Combat Airjet Flight Unit Flight Unit Utility Structural Scanner Device Structural Scanner Storage Huge Storage Unit Weapon Light Cannon Energy Gun Small Laser Ballistic Cannon Light Cannon Special Weapon Mining Laser Build | -11 -10 -10 -10 ------- Run | Yrd Mat Min Sub Slots Evolved 1 | . 1 . . Power . | . . . . Propulsion 1 | . 1 . . Utility . | . . . . Weapon . | . . . . Parts Attached 27 | 5 12 7 3 Power 5 | 1 1 2 1 Engine 4 | 1 . 2 1 Core 1 | . 1 . . Reactor . | . . . . Propulsion 10 | 2 3 5 . Treads . | . . . . Leg . | . . . . Wheel 3 | 2 1 . . Hover 1 | . . 1 . Flight 6 | . 2 4 . Utility 4 | . 4 . . Device 3 | . 3 . . Storage 1 | . 1 . . Processor . | . . . . Hackware . | . . . . Protection . | . . . . Artifact . | . . . . Weapon 8 | 2 4 . 2 Energy Gun 4 | 1 2 . 1 Energy Cannon . | . . . . Ballistic Gun . | . . . . Ballistic Cannon 3 | . 2 . 1 Launcher . | . . . . Special Weapon 1 | 1 . . . Impact Weapon . | . . . . Slashing Weapon . | . . . . Piercing Weapon . | . . . . Special Melee Weapon . | . . . . Unidentified Prototypes . | . . . . Parts Lost 6 | . 1 5 . Power 1 | . . 1 . Propulsion 1 | . . 1 . Utility 3 | . 1 2 . Weapon 1 | . . 1 . Highest Loss Streak 5 | . 1 5 . To Critical Strikes . | . . . . Average Backups 4 | 3 4 5 4 Power . | . 1 . . Propulsion . | . . . 1 Utility 1 | 1 2 2 2 Weapon 1 | 1 1 1 1 Tool/Special . | . . . . Unused Backups 7 | . 2 . 5 Power . | . . . . Propulsion 1 | . 1 . . Utility 1 | . . . 1 Weapon 4 | . 1 . 3 Tool/Special 1 | . . . 1 Average Slot Usage (%) 65 | . 62 72 73 Engine 9 | . 10 4 12 Core 2 | . 1 6 . Wheel 1 | . 2 . . Flight 17 | . 12 26 37 Device 9 | . 10 12 . Energy Gun 4 | . 4 . 7 Ballistic Cannon 18 | . 20 18 11 Peak Build Rating 12 | 5 10 12 10 Average Rating 6 | 1 5 8 8 On Entrance 5 | . 5 9 6 Avg Prop Armor Cover (%) 5 | . 3 5 . Naked Turns . | . . . . Heaviest Build 13 | 5 13 13 9 Greatest Support 20 | 20 20 12 12 Greatest Overweight (x) 3 | . 3 2 . Average Overweight (x) . | . 1 . . Largest Inventory Capacity 25 | 5 25 5 5 Average Capacity 5 | 5 5 5 5 Most Carried 5 | 5 5 5 5 Average Carried 4 | 3 4 4 4 Final Capacity 5 | 5 5 5 5 Final Carried 5 | 5 5 5 5 Class Distribution -------------------- 97% | Hacker-Mutant Dominant Class ---------------- Hacker-Mutant | -10/Materials Hacker-Mutant | -10/Mines Hacker-Mutant | -10/Subcaves Resources | -11 -10 -10 -10 ----------- Run | Yrd Mat Min Sub Matter Collected 930 | 240 301 176 213 Remotely . | . . . . Salvage Created 1003 | 186 622 116 79 Parts 63 | 15 29 9 10 Haulers Intercepted 2 | . 2 . . Recyclers Shooed 3 | . 2 1 . Parts Field Recycled . | . . . . Retrieved Matter . | . . . . Parts Self-Destructed . | . . . . Prevented . | . . . . Parts Restored . | . . . . Kills | -11 -10 -10 -10 ------- Run | Yrd Mat Min Sub Combat Hostiles Destroyed 18 | . 9 5 4 Guns 5 | . 4 . 1 Cannons 13 | . 5 5 3 Classes Destroyed 11 | 3 6 1 1 Worker 3 | 2 1 . . Builder 2 | . 2 . . Tunneler 5 | 3 1 1 . Hauler 2 | . 2 . . Recycler 4 | 1 2 1 . Mechanic 1 | . 1 . . Watcher 3 | . 3 . . Swarmer 6 | . 2 4 . Grunt 7 | . 7 . . Demolisher 1 | . . 1 . Subdweller 4 | . . . 4 Best Kill Streak 5 | 3 5 3 2 Combat Bots Only 4 | . 4 3 2 Max Kills in Single Turn 1 | 1 1 1 1 Gunslinging . | . . . . Exploded . | . . . . Melee . | . . . . Uniques/NPCs Destroyed . | . . . . Combat | -11 -10 -10 -10 -------- Run | Yrd Mat Min Sub Hostile Shots Fired 82 | . 29 33 20 Missed 26 | . 11 6 9 Hits 56 | . 18 27 11 Projectile 56 | . 18 27 11 AOE 12 | . . 12 . Damage Taken 859 | . 151 527 181 Core 254 | . 54 120 80 Absorbed by Shields . | . . . . Ignored by Resistances 407 | . 95 216 96 Core Remaining (%) 100 | 100 . . . Volleys Fired 126 | 20 46 18 42 Largest 2 | 2 2 2 2 Hottest 140 | 140 105 60 130 Shots Fired 215 | 22 92 28 73 Gun 89 | 20 48 . 21 Cannon 114 | . 44 28 42 Launcher . | . . . . Special 12 | 2 . . 10 Kinetic 114 | . 44 28 42 Thermal 80 | 22 48 . 10 Explosive . | . . . . Electromagnetic 21 | . . . 21 Robot Hit Streak 35 | 7 31 17 35 Robot Miss Streak 4 | 2 4 1 . Penetration Max . | . . . . Secondary Targets 1 | . 1 . . Max Gunslinging Chain 1 | . 1 . . Shots Hit Robots 132 | 16 69 22 25 Core Hits 53 | 7 29 9 8 Critical Kills . | . . . . Critical Parts Destroyed . | . . . . Critical Strikes 4 | . 1 2 1 Burn 1 | . 1 . . Blast 3 | . . 2 1 Melee Attacks . | . . . . Impact . | . . . . Slashing . | . . . . Piercing . | . . . . Sneak Attacks . | . . . . Combat Hostiles . | . . . . Follow-up Attacks . | . . . . Damage Inflicted 2197 | 193 1123 406 475 Guns 743 | 169 466 . 108 Cannons 1354 | . 653 406 295 Explosions . | . . . . Melee . | . . . . Ramming 4 | . 4 . . Kinetic 1354 | . 653 406 295 Thermal 731 | 193 466 . 72 Explosive . | . . . . Electromagnetic 108 | . . . 108 Impact . | . . . . Slashing . | . . . . Piercing . | . . . . Highest Corruption 4 | . . 4 4 Average Corruption 4 | . . 4 4 Corruption Purged . | . . . . Corruption Blocked . | . . . . Effects 11 | . . 4 7 Message Errors 2 | . . . 2 Matter Fused 3 | . . 1 2 Heat Flow Errors 2 | . . 1 1 Energy Discharges 1 | . . 1 . Data Loss (minor) 2 | . . . 2 Alerts 1 | . . 1 . Overload Shots . | . . . . Overflow Damage 14 | . 7 7 . Projectiles 14 | . 7 7 . Explosions . | . . . . Melee . | . . . . Knockbacks 11 | . 8 . 3 Impact . | . . . . Kinetic 10 | . 7 . 3 Secondary 1 | . 1 . . Self-Inflicted Damage 2 | . 2 . . Shots . | . . . . Rammed 1 | . 1 . . Targets Rammed 1 | . 1 . . Kicked . | . . . . Crushed . | . . . . Highest Temperature 315 | 35 315 134 228 Average Temperature 60 | 13 66 47 116 Received Heat Transfer 114 | . 105 . 9 Siege Activations . | . . . . Martial Activations . | . . . . Shielding Activations . | . . . . Robots Disrupted . | . . . . Combat Hostiles . | . . . . Robots Corrupted . | . . . . Combat Hostiles . | . . . . Parts Fried . | . . . . Impact Corruptions . | . . . . Robots Melted . | . . . . Combat Hostiles . | . . . . Parts Melted 3 | . 3 . . Heat Transferred 1705 | 425 1130 . 150 Parts Sabotaged . | . . . . Parts Stolen . | . . . . Parts Stripped . | . . . . Power Chain Reactions . | . . . . Alert | -11 -10 -10 -10 ------- Run | Yrd Mat Min Sub Maximum Alert Level . | . . . . Low Security (%) 100 | 100 100 100 . Level 1 . | . . . . Level 2 . | . . . . Level 3 . | . . . . Level 4 . | . . . . Level 5 . | . . . . High Security . | . . . . Max Security . | . . . . Peak Influence 80 | 10 75 80 . Initial 4 | . 4 . . Average 5 | 2 5 8 . Influence Increases 465 | 30 292 143 . Destroy 0b10 Robot/C 280 | . 180 100 . Destroy 0b10 Robot/NC 100 | 30 60 10 . Destroy Leader 80 | . 50 30 . Successful Hack 5 | . 2 3 . Influence Decreases 465 | 20 302 143 . Entered New Map 6 | . 6 . . Time Decay 424 | 20 296 108 . Lost Part 35 | . . 35 . Squads Dispatched . | . . . . Investigation . | . . . . Extermination . | . . . . Reinforcement . | . . . . Assault . | . . . . Garrison . | . . . . Intercept . | . . . . Searches Triggered . | . . . . Construction Impeded . | . . . . Haulers Reinforced . | . . . . Active Scanning Responses . | . . . . Cargo Convoy Interrupts . | . . . . Stealth | -11 -10 -10 -10 --------- Run | Yrd Mat Min Sub Distress Signals . | . . . . Communications Jammed . | . . . . Distress Signals . | . . . . Times Spotted 25 | . 15 6 4 Peak Tracking Total 4 | . 2 4 2 Tactical Retreats . | . . . . Traps | -11 -10 -10 -10 ------- Run | Yrd Mat Min Sub Traps Triggered 2 | . 1 . 1 Indirectly . | . . . . Trap Hack Attempts . | . . . . Triggered . | . . . . Disarmed . | . . . . Reprogrammed . | . . . . Reused . | . . . . Traps Extracted . | . . . . Installed . | . . . . Triggered . | . . . . Machines | -11 -10 -10 -10 ---------- Run | Yrd Mat Min Sub Machines Disabled . | . . . . Max in Single Turn . | . . . . Machines Repaired . | . . . . Machines Dismantled . | . . . . Machines Sabotaged . | . . . . Overloaded Fab Kills . | . . . . Hacking | -11 -10 -10 -10 --------- Run | Yrd Mat Min Sub Machines Accessed 11 | . 9 1 1 Terminals 8 | . 7 1 . Fabricators . | . . . . Repair Stations . | . . . . Recycling Units 2 | . 2 . . Scanalyzers . | . . . . Garrison Access . | . . . . Total Hacks 20 | . 17 2 1 Successful 16 | . 13 2 1 Failed 4 | . 4 . . Catastrophic . | . . . . Database Lockouts . | . . . . Manual 15 | . 14 1 . Terminals 14 | . 12 2 . Fabricators . | . . . . Repair Stations . | . . . . Recycling Units 5 | . 5 . . Scanalyzers . | . . . . Garrison Access . | . . . . Terminal Hacks 2 | . . 1 1 Zone Layout 1 | . . 1 . Proto ID Catalog 1 | . . . 1 Fabricator Hacks . | . . . . Repair Station Hacks . | . . . . Recycling Unit Hacks 2 | . 2 . . Retrieve Components 2 | . 2 . . Scanalyzer . | . . . . Garrison Access Hacks . | . . . . Unauthorized Hacks 10 | . 9 1 . Terminals 8 | . 7 1 . Botnet 8 | . 7 1 . Fabricators . | . . . . Repair Stations . | . . . . Recycling Units 2 | . 2 . . Reject 2 | . 2 . . Scanalyzers . | . . . . Garrison Access . | . . . . Data Cores Recovered . | . . . . Used . | . . . . Hacking Detections 5 | . 4 1 . Full Trace Events . | . . . . Feedback Events . | . . . . Feedback Blocked . | . . . . Robot Schematics Acquired . | . . . . Robots Built . | . . . . Authchips . | . . . . Time . | . . . . Total Robot Build Rating . | . . . . Part Schematics Acquired . | . . . . Parts Built . | . . . . Authchips . | . . . . Time . | . . . . Total Part Build Rating . | . . . . Part Studies Acquired . | . . . . Parts Repaired . | . . . . Time . | . . . . Parts Recycled . | . . . . Recycled Matter . | . . . . Retrieved Matter . | . . . . Retrieved Components 6 | . 6 . . Parts Scanalyzed . | . . . . Part Schematics Acquired . | . . . . Parts Damaged . | . . . . Bothacking | -11 -10 -10 -10 ------------ Run | Yrd Mat Min Sub Used RIF Installer . | . . . . Robots Hacked . | . . . . Non-combat . | . . . . Combat . | . . . . Robot Hacks Applied . | . . . . Relay Couplers Released . | . . . . Fabnet Peak Effective % . | . . . . Robots Rewired . | . . . . Allies Hacked . | . . . . Hacks Repelled . | . . . . Allies | -11 -10 -10 -10 -------- Run | Yrd Mat Min Sub Total Allies . | . . . . Largest Group . | . . . . Highest-Rated Group . | . . . . Highest-Rated Ally . | . . . . Total Orders . | . . . . Ally Attacks . | . . . . Total Damage . | . . . . Kills . | . . . . Allies Corrupted . | . . . . Allies Melted . | . . . . Intel | -11 -10 -10 -10 ------- Run | Yrd Mat Min Sub Active Infowar (turns) 1620 | . 1417 203 . Sensors 774 | . 600 174 . Structural 1305 | . 1102 203 . Robot Analysis Total . | . . . . Derelict Logs Recovered . | . . . . Drone Launches . | . . . . Drone Recoveries . | . . . . Exploration | -11 -10 -10 -10 ------------- Run | Yrd Mat Min Sub Turns Passed 2905 | 115 2011 411 368 Spaces Moved 2359 | 82 1112 622 543 Core 56 | 56 . . . Treads . | . . . . Legs . | . . . . Wheels 165 | 26 139 . . Hover 12 | . . 12 . Flight 2126 | . 973 610 543 Fastest Speed 34 | 50 80 34 34 Average Speed 99 | 59 160 53 34 Slowest Speed 280 | 80 280 200 34 Overloaded Moves . | . . . . Propulsion Burnouts . | . . . . Robots Hopped 2 | . . 2 . Potential Cave-ins 5 | . . 5 . Cave-ins Triggered 1 | . . 1 . Exploration Rate (%) 57 | 3 100 97 30 Regions Visited 3 Branch Regions 2 Pre-discovered Areas 1 | . . 1 . Known Exits Taken 3 | 1 1 1 . Unknown Exits Taken . | . . . . Scrap Searched 4 | . . . 4 Spaces Dug . | . . . . Terrain Destroyed . | . . . . Melee . | . . . . Projectile . | . . . . AOE . | . . . . Terrain Rammed . | . . . . Walls Destroyed . | . . . . Machines Disabled . | . . . . Actions | -11 -10 -10 -10 --------- Run | Yrd Mat Min Sub Total 2673 | 120 1247 670 636 Wait 131 | 8 64 20 39 Move 2352 | 81 1111 617 543 Hop 2 | . . 2 . Pick Up 12 | 6 2 1 3 Fast Attach 18 | 4 9 3 2 Attach 3 | 1 1 . 1 Detach 1 | . 1 . . Swap 8 | . 2 5 1 Drop 19 | . 10 4 5 Fire 126 | 20 46 18 42 Melee . | . . . . Ram 1 | . 1 . . Kick . | . . . . Crush . | . . . . Escape Stasis . | . . . . Rewire . | . . . . Trap . | . . . . Miscellaneous . | . . . . Route ------- -11/Scrapyard -10/Materials (discovered 5 exits: *Mat x3 / *Min / *Sub) -10/Mines (discovered 4 exits: *Mat x2 / *Exi / *Sub) -10/Subcaves (discovered 2 exits: *Mat / *Rec) History --------- Turn | Location | Event 7 | -11/Scrapyard | Identified exit to Materials 7 | -11/Scrapyard | Discovered exit to Materials (range 16) 116 | -11/Scrapyard | Entered Materials 116 | -10/Materials | Evolved 1 slot: Propulsion x1 214 | -10/Materials | Identified exit to Materials 214 | -10/Materials | Discovered exit to Materials (range 9) 304 | -10/Materials | Build established: Hacker-Mutant 341 | -10/Materials | Discovered exit to Materials (range 9) 536 | -10/Materials | Identified exit to Subcaves 536 | -10/Materials | Discovered exit to Subcaves (range 8) 1076 | -10/Materials | Discovered exit to Materials (range 16) 2087 | -10/Materials | Identified exit to Mines 2087 | -10/Materials | Discovered exit to Mines (range 8) 2127 | -10/Materials | Entered Mines 2128 | -10/Mines | Learned location of Storage (-8) 2167 | -10/Mines | Received a Rocket Launcher from a helpful Derelict 2277 | -10/Mines | Assembled infested the area 2283 | -10/Mines | Discovered exit to Subcaves (range 5) 2307 | -10/Mines | Core integrity fell below 50% 2330 | -10/Mines | Crushed by falling debris 2341 | -10/Mines | Discovered exit to Materials (range 8) 2361 | -10/Mines | Lost 5 parts (1p1n2u1w) 2362 | -10/Mines | Met 8R-AWN 2412 | -10/Mines | Discovered exit to Materials (range 15) 2496 | -10/Mines | Identified exit to Exiles 2496 | -10/Mines | Discovered exit to Exiles (range 5) 2538 | -10/Mines | Entered Subcaves 2539 | -10/Subcaves | Approached by a straggling Scientist 2614 | -10/Subcaves | Visited 4L-MR0's lab 2648 | -10/Subcaves | Core integrity fell below 20% 2742 | -10/Subcaves | Identified exit to Recycling 2742 | -10/Subcaves | Discovered exit to Recycling (range 11) 2765 | -10/Subcaves | Identified exit to Materials 2765 | -10/Subcaves | Discovered exit to Materials (range 14) 2835 | -10/Subcaves | A swath of the cavern ceiling suddenly collapsed 2906 | -10/Subcaves | Destroyed by Piercing Trap Last Messages --------------- 02821_ 0H-6TN(R) Sub. Monowheel blasted off. 02827_ 0H-6TN(R) destroyed. 02829_ FN-AS3(R) destroyed. A swath of the cavern ceiling suddenly collapses. 02836_ Acquired 11 matter. 02837_ Acquired 19 matter. 02837_ Acquired 26 matter. 02843_ EBNW5P9ZSOPLYJZE3B3,GRG SA-XIB(c): "I think it's somewhere north of here" 02867_ System corrupted: Matter fused (-7). 02884_ System corrupted: Heat flow error (+256). 02885_ Acquired 2 matter. 02886_ Acquired 13 matter. 02900_ AI-JUB(z): "She is not going to be happy we haven't found any suitable candidates yet." 02906_ Triggered Piercing Trap. 02906_ Spikes shoot up from the floor. 02906_ Critical hit (Impale). Map ----- +----------------------------------------------------+ | ?????????????????????????????????????????????????? | | ?????????????????????????????????????????????????? | | ?????????????????????????????????????????????????? | | ?????????????????????????????????????????????????? | | ?????????????????????????????????????????????????? | | ?????????????????????????????????????????????????? | | ?????????????????????????????????????????????????? | | ?????????????????????????????????????????????????? | | ?????????????????????????????????????????????????? | | ?????????????????????????????????????????????????? | | ?????????????????????????????????????????????????? | | ?????????????????????????????????????????????????? | | ????????????????????????????? #??????????????????? | | ????????????????????????????? #??????????????????? | | ????????????????????????????? #??????????????????? | | ???????????????????????????? #??????????????????? | | ???????????????????????????? #??????????????????? | | ???????????????????????????? ##?????????????????? | | ???????????????????????????# #?????????????????? | | ???????#####??????????????# ##????????????????? | | ######## ""##???????????## ##???????????????? | | " ""##"" "#??????????## ##??????????????? | | # #"""""#?????????## #??????????????? | | ""X" + """#???????### ?????????????????? | | """"""# """ #???????# #???????????????????? | | ######## " "#???????# @ #?????????????????????? | | ??????## """#???????#### #?????????????????????? | | ?######" " "#??????????# #?????????????????????? | | ?# # ""##??????????# ##????????????????????? | | ?## "#??????????## #????????????????????? | | ?#" ## ######??????# #????????????????????? | | ## "###### ##????## ####?????????????????? | | " ### ##?### ## ####??????????????? | | ### #??????????????? | | ## ##??????????????? | | ## ###############?? | | ### ## # #### # ##? | | ??####### # ##?# ### ## | | ????????## ## ### ### ## # | | ?????????#### ^ ## ### ##### | | ???????????## ##?###??## | | ????????#### ## # ##??????## ## | | ????????# ### ## ######### #? | | ????????## #?### ## ##"| # ## | | ?????????# ## #???###### ## [ "### ### # | | ?????????# ####????????# # ####?##### | | ?????????# ##??????????## ## & #?## | | ?????????# ##??????????## %##/#### | | ?????????# ##???????????# #" " ## ## | | ?????????# ##????????????# ## #? | +----------------------------------------------------+ Best States ------------- Heat Dissipation 25 Energy Generation 14 Energy Capacity 160 Matter Stores 300 Matter Capacity 300 Sight Range 16 Robot Scan Range 14 Terrain Scan Density 10 Resistance: KI 35 Resistance: TH 35 Resistance: EX 35 Resistance: EM 35 Resistance: I 35 Resistance: S 35 Resistance: P 35 Evasion (%) 63 Offensive Hacking 20 Item Schematics ----------------- None Robot Schematics ------------------ None Fabricated ------------ Nothing Repaired ---------- Nothing Studied --------- None Alien Tech Used ----------------- None Achievements -------------- None Challenges ------------ None Game ------ Seed LaunchDisassembledRigger Manual? 0 Play Time 00:17:42 Cumulative 198.0 hours Start 2025.12.15 @ 09:21:36 End 2025.12.15 @ 09:38:28 Sessions 1 Manual Loads 0 Difficulty Explorer Special Mode None Game No. 293 Rogue 0 Adventurer 0 Explorer 293 Win Type - Total 0 Types 0/0/0/0/0/0/0/0/0/0 Lore% 71 Gallery% 67 Achievement% 53 Wizard Run 0 Options --------- Layout 1 ASCII 0 Keyboard 0 Movement Mouse Keybinds 0 Fullscreen 1 Font 24/Smallcaps Map View 50x35 Zoom Use 0% Tactical HUD 1 Map Filters NONE Filters NONE Steam 1 RUN: fd9ed08b-5da9-4ba9-b32e-17e6898d566a